[Event "Titled Tuesday Blitz March 08 Late 2022"]
[White "Rustemov, Alexander"]
[Black "Mogranzini, Roberto"]
[WhiteFideId "4119002"]
[BlackFideId "810894"]
[WhiteElo "2769"]
[BlackElo "2469"]
[Result "0-1"]
[Round "04"]
[TimeControl "180+1"]
[Date "2022.03.08"]
[WhiteClock "0:00:05"]
[BlackClock "0:00:23"]

1. d4 {[%clk 0:03:00]}  Nf6 {[%clk 0:03:00]} 2. c4 {[%clk 0:03:00]}  d6 {[%clk 0:03:00]} 3. Nf3 {[%clk 0:03:00]}  g6 {[%clk 0:03:00]} 4. g3 {[%clk 0:02:59]}  Bg7 {[%clk 0:03:00]} 5. Bg2 {[%clk 0:03:00]}  Bf5 {[%clk 0:02:57]} 6. O-O {[%clk 0:02:56]}  O-O {[%clk 0:02:58]} 7. Nh4 {[%clk 0:02:52]}  Bc8 {[%clk 0:02:57]} 8. Nc3 {[%clk 0:02:51]}  Nc6 {[%clk 0:02:57]} 9. Nf3 {[%clk 0:02:49]}  Rb8 {[%clk 0:02:57]} 10. h3 {[%clk 0:02:48]}  a6 {[%clk 0:02:57]} 11. e4 {[%clk 0:02:47]}  e5 {[%clk 0:02:57]} 12. Be3 {[%clk 0:02:44]}  exd4 {[%clk 0:02:55]} 13. Nxd4 {[%clk 0:02:43]}  Bd7 {[%clk 0:02:55]} 14. Rc1 {[%clk 0:02:38]}  Re8 {[%clk 0:02:55]} 15. b3 {[%clk 0:02:25]}  Nxd4 {[%clk 0:02:49]} 16. Bxd4 {[%clk 0:02:25]}  c5 {[%clk 0:02:49]} 17. Be3 {[%clk 0:02:21]}  Bc6 {[%clk 0:02:47]} 18. Qd3 {[%clk 0:02:17]}  Qc7 {[%clk 0:01:32]} 19. Rfd1 {[%clk 0:02:13]}  Rbd8 {[%clk 0:01:32]} 20. Bf4 {[%clk 0:02:11]}  Qa5 {[%clk 0:01:21]} 21. g4 {[%clk 0:01:50]}  Nd7 {[%clk 0:01:09]} 22. Bxd6 {[%clk 0:01:41]}  Ne5 {[%clk 0:00:57]} 23. Qe3 {[%clk 0:01:39]}  Nxg4 {[%clk 0:00:34]} 24. hxg4 {[%clk 0:01:37]}  Bd4 {[%clk 0:00:35]} 25. Rxd4 {[%clk 0:01:33]}  cxd4 {[%clk 0:00:35]} 26. Qxd4 {[%clk 0:01:34]}  Qg5 {[%clk 0:00:35]} 27. Rd1 {[%clk 0:01:26]}  Qxg4 {[%clk 0:00:35]} 28. f3 {[%clk 0:01:23]}  Qh4 {[%clk 0:00:31]} 29. Qf2 {[%clk 0:01:17]}  Qf6 {[%clk 0:00:28]} 30. c5 {[%clk 0:01:11]}  Qxc3 {[%clk 0:00:28]} 31. Qh4 {[%clk 0:00:52]}  b6 {[%clk 0:00:23]} 32. Qg5 {[%clk 0:00:42]}  bxc5 {[%clk 0:00:23]} 33. Rc1 {[%clk 0:00:42]}  Qd4+ {[%clk 0:00:23]} 34. Kh1 {[%clk 0:00:39]}  Qxd6 {[%clk 0:00:23]} 35. Rxc5 {[%clk 0:00:38]}  Bb5 {[%clk 0:00:23]} 36. f4 {[%clk 0:00:32]}  Qe7 {[%clk 0:00:23]} 37. Qxe7 {[%clk 0:00:27]}  Rxe7 {[%clk 0:00:23]} 38. e5 {[%clk 0:00:28]}  Rd2 {[%clk 0:00:22]} 39. a4 {[%clk 0:00:27]}  Bd3 {[%clk 0:00:21]} 40. b4 {[%clk 0:00:24]}  Bf5 {[%clk 0:00:20]} 41. b5 {[%clk 0:00:24]}  axb5 {[%clk 0:00:21]} 42. axb5 {[%clk 0:00:25]}  Rb2 {[%clk 0:00:21]} 43. Bc6 {[%clk 0:00:25]}  Rb4 {[%clk 0:00:20]} 44. Kh2 {[%clk 0:00:22]}  Be4 {[%clk 0:00:21]} 45. Kg3 {[%clk 0:00:19]}  Bxc6 {[%clk 0:00:21]} 46. bxc6 {[%clk 0:00:19]}  Rc7 {[%clk 0:00:21]} 47. Kg4 {[%clk 0:00:18]}  Rb6 {[%clk 0:00:22]} 48. Kg5 {[%clk 0:00:18]}  Rbxc6 {[%clk 0:00:23]} 49. Rd5 {[%clk 0:00:19]}  Kg7 {[%clk 0:00:23]} 50. Rd8 {[%clk 0:00:19]}  h6+ {[%clk 0:00:24]} 51. Kg4 {[%clk 0:00:18]}  Rc4 {[%clk 0:00:24]} 52. Rd6 {[%clk 0:00:16]}  R7c6 {[%clk 0:00:25]} 53. Rd7 {[%clk 0:00:16]}  Re6 {[%clk 0:00:25]} 54. Kg3 {[%clk 0:00:16]}  Rb4 {[%clk 0:00:24]} 55. Rc7 {[%clk 0:00:16]}  Reb6 {[%clk 0:00:24]} 56. Kg4 {[%clk 0:00:15]}  g5 {[%clk 0:00:24]} 57. Kh5 {[%clk 0:00:07]}  Rxf4 {[%clk 0:00:25]} 58. Rxf7+ {[%clk 0:00:06]}  Kxf7 {[%clk 0:00:22]} 59. e6+ {[%clk 0:00:07]}  Ke8 {[%clk 0:00:23]} 60. Kxh6 {[%clk 0:00:06]}  Rxe6+ {[%clk 0:00:23]} 61. Kxg5 {[%clk 0:00:07]}  Rf1 {[%clk 0:00:23]} 62. Kg4 {[%clk 0:00:07]}  Rg6+ {[%clk 0:00:23]} 63. Kh5 {[%clk 0:00:06]}  Rg8 {[%clk 0:00:23]} 64. Kh6 {[%clk 0:00:05]}  Rh1# {[%clk 0:00:23]} 0-1


[Site "https://www.chess.com"]

[Event "Titled Tuesday Blitz March 08 Late 2022"]
[White "Sanal, Vahap"]
[Black "Riehle, Marco"]
[WhiteFideId "6300545"]
[BlackFideId "12904392"]
[WhiteElo "2603"]
[BlackElo "2462"]
[Result "0-1"]
[Round "04"]
[TimeControl "180+1"]
[Date "2022.03.08"]
[WhiteClock "0:01:45"]
[BlackClock "0:02:43"]

1. e4 {[%clk 0:03:00]}  e5 {[%clk 0:02:59]} 2. Nf3 {[%clk 0:03:00]}  Nf6 {[%clk 0:02:59]} 3. Nxe5 {[%clk 0:02:52]}  Nxe4 {[%clk 0:02:58]} 4. Qe2 {[%clk 0:02:50]}  Qe7 {[%clk 0:02:57]} 5. Qxe4 {[%clk 0:02:49]}  d6 {[%clk 0:02:58]} 6. d4 {[%clk 0:02:48]}  dxe5 {[%clk 0:02:58]} 7. dxe5 {[%clk 0:02:48]}  Nc6 {[%clk 0:02:58]} 8. Nc3 {[%clk 0:02:49]}  Qxe5 {[%clk 0:02:57]} 9. Qxe5+ {[%clk 0:02:48]}  Nxe5 {[%clk 0:02:58]} 10. Bf4 {[%clk 0:02:46]}  f6 {[%clk 0:02:59]} 11. O-O-O {[%clk 0:02:45]}  Bd7 {[%clk 0:02:56]} 12. Nb5 {[%clk 0:02:41]}  O-O-O {[%clk 0:02:54]} 13. Nxa7+ {[%clk 0:02:34]}  Kb8 {[%clk 0:02:53]} 14. Nb5 {[%clk 0:02:35]}  Bc5 {[%clk 0:02:52]} 15. Bg3 {[%clk 0:02:13]}  g5 {[%clk 0:02:48]} 16. Be2 {[%clk 0:02:07]}  Bc6 {[%clk 0:02:46]} 17. f3 {[%clk 0:01:50]}  h5 {[%clk 0:02:44]} 18. Rxd8+ {[%clk 0:01:47]}  Rxd8 {[%clk 0:02:43]} 19. Rd1 {[%clk 0:01:47]}  Be3+ {[%clk 0:02:42]} 20. Kb1 {[%clk 0:01:45]}  Rxd1+ {[%clk 0:02:42]} 21. Bxd1 {[%clk 0:01:45]}  Bxb5 {[%clk 0:02:43]} 0-1


[Site "https://www.chess.com"]

[Event "Titled Tuesday Blitz March 08 Late 2022"]
[White "Sliwicki, Damian"]
[Black "P., Komal Kishore"]
[WhiteFideId "1127128"]
[BlackFideId "5016703"]
[WhiteElo "2067"]
[BlackElo "2138"]
[Result "1-0"]
[Round "04"]
[TimeControl "180+1"]
[Date "2022.03.09"]
[WhiteClock "0:01:34"]
[BlackClock "0:00:19"]

1. e4 {[%clk 0:02:54]}  c6 {[%clk 0:03:00]} 2. Nc3 {[%clk 0:02:51]}  d5 {[%clk 0:03:01]} 3. Nf3 {[%clk 0:02:50]}  Bg4 {[%clk 0:02:59]} 4. h3 {[%clk 0:02:49]}  Bxf3 {[%clk 0:02:59]} 5. Qxf3 {[%clk 0:02:48]}  e6 {[%clk 0:02:58]} 6. d3 {[%clk 0:02:48]}  Nf6 {[%clk 0:02:57]} 7. Bd2 {[%clk 0:02:46]}  Nbd7 {[%clk 0:02:53]} 8. O-O-O {[%clk 0:02:45]}  Be7 {[%clk 0:02:43]} 9. g4 {[%clk 0:02:42]}  Qc7 {[%clk 0:02:23]} 10. g5 {[%clk 0:02:40]}  Ne5 {[%clk 0:02:15]} 11. Qg3 {[%clk 0:02:33]}  Nfd7 {[%clk 0:02:14]} 12. d4 {[%clk 0:02:27]}  Bd6 {[%clk 0:01:58]} 13. dxe5 {[%clk 0:02:24]}  Nxe5 {[%clk 0:01:56]} 14. f4 {[%clk 0:02:19]}  Ng6 {[%clk 0:01:52]} 15. e5 {[%clk 0:02:13]}  Bc5 {[%clk 0:01:48]} 16. Kb1 {[%clk 0:02:08]}  Ne7 {[%clk 0:01:40]} 17. h4 {[%clk 0:02:08]}  Nf5 {[%clk 0:01:38]} 18. Qd3 {[%clk 0:02:05]}  O-O-O {[%clk 0:01:10]} 19. Bh3 {[%clk 0:01:58]}  Ne7 {[%clk 0:00:56]} 20. h5 {[%clk 0:01:46]}  b5 {[%clk 0:00:53]} 21. a3 {[%clk 0:01:44]}  b4 {[%clk 0:00:48]} 22. Na4 {[%clk 0:01:41]}  bxa3 {[%clk 0:00:25]} 23. Nxc5 {[%clk 0:01:37]}  Qb6 {[%clk 0:00:22]} 24. Qa6+ {[%clk 0:01:36]}  Kc7 {[%clk 0:00:19]} 25. Ba5 {[%clk 0:01:34]} 1-0


[Site "https://www.chess.com"]

[Event "Titled Tuesday Blitz March 08 Late 2022"]
[White "Stoleriu, George"]
[Black "Paravyan, David"]
[WhiteFideId "1227505"]
[BlackFideId "4194985"]
[WhiteElo "2203"]
[BlackElo "2569"]
[Result "0-1"]
[Round "04"]
[TimeControl "180+1"]
[Date "2022.03.08"]
[WhiteClock "0:00:04"]
[BlackClock "0:01:52"]

1. e4 {[%clk 0:03:00]}  e5 {[%clk 0:02:59]} 2. Nf3 {[%clk 0:03:01]}  Nf6 {[%clk 0:02:59]} 3. Nxe5 {[%clk 0:03:01]}  d6 {[%clk 0:03:00]} 4. Nf3 {[%clk 0:03:01]}  Nxe4 {[%clk 0:03:00]} 5. c4 {[%clk 0:03:02]}  Nc6 {[%clk 0:02:58]} 6. Nc3 {[%clk 0:03:02]}  Nxc3 {[%clk 0:02:59]} 7. dxc3 {[%clk 0:03:03]}  g6 {[%clk 0:02:59]} 8. Be3 {[%clk 0:03:02]}  Bg7 {[%clk 0:02:59]} 9. Be2 {[%clk 0:03:02]}  O-O {[%clk 0:02:59]} 10. O-O {[%clk 0:03:03]}  Re8 {[%clk 0:03:00]} 11. Re1 {[%clk 0:03:03]}  Bf5 {[%clk 0:02:59]} 12. Nd4 {[%clk 0:03:02]}  Qd7 {[%clk 0:02:58]} 13. Nxf5 {[%clk 0:02:56]}  Qxf5 {[%clk 0:02:59]} 14. Bf3 {[%clk 0:02:57]}  h5 {[%clk 0:02:46]} 15. Bxc6 {[%clk 0:02:32]}  bxc6 {[%clk 0:02:46]} 16. Bd4 {[%clk 0:02:33]}  Rxe1+ {[%clk 0:02:44]} 17. Qxe1 {[%clk 0:02:34]}  Bxd4 {[%clk 0:02:45]} 18. cxd4 {[%clk 0:02:35]}  Qd3 {[%clk 0:02:45]} 19. Qe7 {[%clk 0:01:09]}  Qxc4 {[%clk 0:02:39]} 20. Qxc7 {[%clk 0:01:08]}  Qxd4 {[%clk 0:02:39]} 21. Qxc6 {[%clk 0:01:07]}  Rb8 {[%clk 0:02:40]} 22. Qc3 {[%clk 0:00:55]}  Qxc3 {[%clk 0:02:32]} 23. bxc3 {[%clk 0:00:56]}  Rc8 {[%clk 0:02:32]} 24. Rc1 {[%clk 0:00:53]}  Rc4 {[%clk 0:02:30]} 25. Kf1 {[%clk 0:00:50]}  Kg7 {[%clk 0:02:26]} 26. Ke2 {[%clk 0:00:50]}  Kf6 {[%clk 0:02:27]} 27. Kd3 {[%clk 0:00:51]}  Rg4 {[%clk 0:02:23]} 28. g3 {[%clk 0:00:51]}  Ra4 {[%clk 0:02:24]} 29. Rc2 {[%clk 0:00:51]}  d5 {[%clk 0:02:23]} 30. Rb2 {[%clk 0:00:45]}  Kf5 {[%clk 0:02:20]} 31. f3 {[%clk 0:00:39]}  a6 {[%clk 0:02:19]} 32. Re2 {[%clk 0:00:33]}  f6 {[%clk 0:02:17]} 33. Rb2 {[%clk 0:00:33]}  h4 {[%clk 0:02:16]} 34. Re2 {[%clk 0:00:33]}  g5 {[%clk 0:02:15]} 35. Rb2 {[%clk 0:00:30]}  Ke5 {[%clk 0:02:11]} 36. Re2+ {[%clk 0:00:26]}  Kd6 {[%clk 0:02:11]} 37. Rb2 {[%clk 0:00:27]}  Kc5 {[%clk 0:02:12]} 38. gxh4 {[%clk 0:00:18]}  Rxh4 {[%clk 0:02:10]} 39. Re2 {[%clk 0:00:17]}  Rf4 {[%clk 0:02:07]} 40. Ke3 {[%clk 0:00:13]}  Kc4 {[%clk 0:02:03]} 41. Rd2 {[%clk 0:00:14]}  Rf5 {[%clk 0:02:03]} 42. Rd3 {[%clk 0:00:09]}  a5 {[%clk 0:01:57]} 43. Kd2 {[%clk 0:00:07]}  Rf4 {[%clk 0:01:57]} 44. Re3 {[%clk 0:00:07]}  Rh4 {[%clk 0:01:57]} 45. Re2 {[%clk 0:00:07]}  Rh3 {[%clk 0:01:57]} 46. Rf2 {[%clk 0:00:08]}  a4 {[%clk 0:01:57]} 47. Kc2 {[%clk 0:00:06]}  a3 {[%clk 0:01:57]} 48. Kd2 {[%clk 0:00:06]}  f5 {[%clk 0:01:56]} 49. Rg2 {[%clk 0:00:05]}  Rxf3 {[%clk 0:01:54]} 50. Rxg5 {[%clk 0:00:05]}  Rf2+ {[%clk 0:01:54]} 51. Kc1 {[%clk 0:00:05]}  f4 {[%clk 0:01:52]} 52. Kb1 {[%clk 0:00:03]}  Kxc3 {[%clk 0:01:51]} 53. Rg1 {[%clk 0:00:04]}  Rb2+ {[%clk 0:01:51]} 54. Ka1 {[%clk 0:00:04]}  Rxh2 {[%clk 0:01:52]} 0-1


[Site "https://www.chess.com"]

[Event "Titled Tuesday Blitz March 08 Late 2022"]
[White "Tabatabaei, M. Amin"]
[Black "Cori T., Deysi"]
[WhiteFideId "12521213"]
[BlackFideId "3801934"]
[WhiteElo "2544"]
[BlackElo "2341"]
[Result "1-0"]
[Round "04"]
[TimeControl "180+1"]
[Date "2022.03.08"]
[WhiteClock "0:00:19"]
[BlackClock "0:00:02"]

1. d4 {[%clk 0:03:00]}  f5 {[%clk 0:02:59]} 2. h4 {[%clk 0:02:52]}  d6 {[%clk 0:02:53]} 3. Nc3 {[%clk 0:02:46]}  c6 {[%clk 0:02:53]} 4. e4 {[%clk 0:02:43]}  Nf6 {[%clk 0:02:51]} 5. Bd3 {[%clk 0:02:35]}  Qb6 {[%clk 0:02:46]} 6. Nf3 {[%clk 0:02:32]}  fxe4 {[%clk 0:02:39]} 7. Nxe4 {[%clk 0:02:31]}  Bg4 {[%clk 0:02:39]} 8. Nxf6+ {[%clk 0:02:27]}  gxf6 {[%clk 0:02:39]} 9. c3 {[%clk 0:02:23]}  Nd7 {[%clk 0:02:39]} 10. h5 {[%clk 0:02:22]}  O-O-O {[%clk 0:02:38]} 11. Rh4 {[%clk 0:02:21]}  f5 {[%clk 0:02:37]} 12. Rxg4 {[%clk 0:02:17]}  fxg4 {[%clk 0:02:37]} 13. Ng5 {[%clk 0:02:18]}  e5 {[%clk 0:01:50]} 14. Nf7 {[%clk 0:02:08]}  exd4 {[%clk 0:01:49]} 15. Nxh8 {[%clk 0:02:03]}  dxc3 {[%clk 0:01:43]} 16. bxc3 {[%clk 0:01:42]}  Bg7 {[%clk 0:01:36]} 17. Rb1 {[%clk 0:01:42]}  Re8+ {[%clk 0:00:45]} 18. Kf1 {[%clk 0:01:37]}  Qc5 {[%clk 0:00:42]} 19. Nf7 {[%clk 0:01:29]}  Rf8 {[%clk 0:00:41]} 20. Qb3 {[%clk 0:01:21]}  b6 {[%clk 0:00:13]} 21. Qe6 {[%clk 0:01:12]}  Kc7 {[%clk 0:00:10]} 22. Bf4 {[%clk 0:01:08]}  Be5 {[%clk 0:00:08]} 23. Bxe5 {[%clk 0:00:58]}  Nxe5 {[%clk 0:00:08]} 24. Qe7+ {[%clk 0:00:50]}  Nd7 {[%clk 0:00:09]} 25. Re1 {[%clk 0:00:44]}  g3 {[%clk 0:00:09]} 26. Re3 {[%clk 0:00:29]}  gxf2 {[%clk 0:00:05]} 27. g4 {[%clk 0:00:24]}  Qd5 {[%clk 0:00:04]} 28. Qxd6+ {[%clk 0:00:19]}  Qxd6 {[%clk 0:00:04]} 29. Nxd6 {[%clk 0:00:20]}  Kxd6 {[%clk 0:00:04]} 30. Bxh7 {[%clk 0:00:21]}  Ne5 {[%clk 0:00:05]} 31. Bf5 {[%clk 0:00:20]}  Nc4 {[%clk 0:00:02]} 32. Re6+ {[%clk 0:00:19]}  Kd5 {[%clk 0:00:02]} 33. h6 {[%clk 0:00:19]} 1-0


[Site "https://www.chess.com"]

[Event "Titled Tuesday Blitz March 08 Late 2022"]
[White "Tari, Aryan"]
[Black "Cardoso Cardoso, Jose Gabriel"]
[WhiteFideId "1510045"]
[BlackFideId "4430492"]
[WhiteElo "2567"]
[BlackElo "2451"]
[Result "1-0"]
[Round "04"]
[TimeControl "180+1"]
[Date "2022.03.08"]
[WhiteClock "0:00:30"]
[BlackClock "0:00:04"]

1. c4 {[%clk 0:02:54]}  g6 {[%clk 0:02:55]} 2. g3 {[%clk 0:02:52]}  Bg7 {[%clk 0:02:52]} 3. Bg2 {[%clk 0:02:53]}  d6 {[%clk 0:02:51]} 4. Nc3 {[%clk 0:02:53]}  Nf6 {[%clk 0:02:50]} 5. d4 {[%clk 0:02:51]}  O-O {[%clk 0:02:49]} 6. Nf3 {[%clk 0:02:51]}  Nc6 {[%clk 0:02:48]} 7. O-O {[%clk 0:02:49]}  Bf5 {[%clk 0:02:49]} 8. Re1 {[%clk 0:02:27]}  Ne4 {[%clk 0:02:44]} 9. Nd5 {[%clk 0:02:26]}  e5 {[%clk 0:02:05]} 10. dxe5 {[%clk 0:01:53]}  Nxe5 {[%clk 0:02:03]} 11. Nd4 {[%clk 0:01:53]}  Nxc4 {[%clk 0:01:35]} 12. Nxf5 {[%clk 0:01:53]}  gxf5 {[%clk 0:01:34]} 13. Qc2 {[%clk 0:01:49]}  Nb6 {[%clk 0:01:29]} 14. Ne3 {[%clk 0:01:49]}  Qd7 {[%clk 0:01:10]} 15. Nxf5 {[%clk 0:01:49]}  Qxf5 {[%clk 0:00:41]} 16. Bxe4 {[%clk 0:01:49]}  Qh5 {[%clk 0:00:42]} 17. Bxb7 {[%clk 0:01:47]}  Rab8 {[%clk 0:00:42]} 18. Bf3 {[%clk 0:01:47]}  Qg6 {[%clk 0:00:41]} 19. Be4 {[%clk 0:01:38]}  f5 {[%clk 0:00:38]} 20. Bf3 {[%clk 0:01:38]}  c5 {[%clk 0:00:32]} 21. Bf4 {[%clk 0:01:32]}  Nd7 {[%clk 0:00:27]} 22. Rad1 {[%clk 0:01:32]}  Rb6 {[%clk 0:00:25]} 23. b3 {[%clk 0:01:28]}  Be5 {[%clk 0:00:24]} 24. h4 {[%clk 0:01:26]}  Bxf4 {[%clk 0:00:22]} 25. Qc4+ {[%clk 0:01:26]}  Kg7 {[%clk 0:00:23]} 26. Qxf4 {[%clk 0:01:27]}  Ne5 {[%clk 0:00:23]} 27. h5 {[%clk 0:01:23]}  Qf6 {[%clk 0:00:22]} 28. Rd5 {[%clk 0:01:21]}  Rb4 {[%clk 0:00:21]} 29. Qd2 {[%clk 0:01:18]}  Rd4 {[%clk 0:00:12]} 30. Rxd4 {[%clk 0:01:18]}  cxd4 {[%clk 0:00:12]} 31. Rd1 {[%clk 0:01:19]}  d3 {[%clk 0:00:10]} 32. Bg2 {[%clk 0:01:17]}  dxe2 {[%clk 0:00:11]} 33. Qxe2 {[%clk 0:01:18]}  Rc8 {[%clk 0:00:10]} 34. Qa6 {[%clk 0:01:17]}  Rc2 {[%clk 0:00:08]} 35. Qxa7+ {[%clk 0:01:17]}  Kh6 {[%clk 0:00:08]} 36. Qe3+ {[%clk 0:01:17]}  f4 {[%clk 0:00:06]} 37. Qxf4+ {[%clk 0:01:10]}  Qxf4 {[%clk 0:00:06]} 38. gxf4 {[%clk 0:01:08]}  Ng4 {[%clk 0:00:07]} 39. Rxd6+ {[%clk 0:01:09]}  Kg7 {[%clk 0:00:06]} 40. h6+ {[%clk 0:01:00]}  Nxh6 {[%clk 0:00:06]} 41. a4 {[%clk 0:00:51]}  Ng4 {[%clk 0:00:06]} 42. Be4 {[%clk 0:00:47]}  Rb2 {[%clk 0:00:04]} 43. Bd5 {[%clk 0:00:35]}  Nxf2 {[%clk 0:00:04]} 44. a5 {[%clk 0:00:35]}  Nh3+ {[%clk 0:00:04]} 45. Kf1 {[%clk 0:00:35]}  Nxf4 {[%clk 0:00:05]} 46. Bc4 {[%clk 0:00:34]}  Ra2 {[%clk 0:00:05]} 47. a6 {[%clk 0:00:34]}  h5 {[%clk 0:00:05]} 48. Rd4 {[%clk 0:00:32]}  Nh3 {[%clk 0:00:03]} 49. Rd7+ {[%clk 0:00:31]}  Kf6 {[%clk 0:00:03]} 50. a7 {[%clk 0:00:32]}  Nf4 {[%clk 0:00:03]} 51. b4 {[%clk 0:00:30]}  h4 {[%clk 0:00:03]} 52. Bxa2 {[%clk 0:00:30]}  h3 {[%clk 0:00:04]} 53. a8=Q {[%clk 0:00:30]} 1-0


[Site "https://www.chess.com"]

[Event "Titled Tuesday Blitz March 08 Late 2022"]
[White "Thavandiran, Shiyam"]
[Black "Oparin, Grigoriy"]
[WhiteFideId "2605058"]
[BlackFideId "24125890"]
[WhiteElo "2357"]
[BlackElo "2665"]
[Result "1/2-1/2"]
[Round "04"]
[TimeControl "180+1"]
[Date "2022.03.08"]
[WhiteClock "0:00:27"]
[BlackClock "0:01:23"]

1. e4 {[%clk 0:02:52]}  c6 {[%clk 0:03:00]} 2. d4 {[%clk 0:02:51]}  d5 {[%clk 0:03:01]} 3. Nd2 {[%clk 0:02:51]}  dxe4 {[%clk 0:03:01]} 4. Nxe4 {[%clk 0:02:52]}  Nf6 {[%clk 0:03:02]} 5. Nxf6+ {[%clk 0:02:52]}  exf6 {[%clk 0:03:02]} 6. c3 {[%clk 0:02:53]}  Bd6 {[%clk 0:03:03]} 7. Bd3 {[%clk 0:02:53]}  O-O {[%clk 0:03:03]} 8. Qc2 {[%clk 0:02:53]}  Re8+ {[%clk 0:03:04]} 9. Ne2 {[%clk 0:02:53]}  h6 {[%clk 0:03:05]} 10. O-O {[%clk 0:02:43]}  Nd7 {[%clk 0:03:06]} 11. Ng3 {[%clk 0:02:43]}  Nf8 {[%clk 0:03:06]} 12. Bd2 {[%clk 0:02:41]}  Be6 {[%clk 0:03:02]} 13. Rae1 {[%clk 0:02:41]}  Rc8 {[%clk 0:03:02]} 14. a4 {[%clk 0:02:35]}  Qd7 {[%clk 0:02:58]} 15. Bc1 {[%clk 0:02:24]}  Bb8 {[%clk 0:02:46]} 16. Re2 {[%clk 0:02:16]}  Bg4 {[%clk 0:02:44]} 17. f3 {[%clk 0:02:08]}  Rxe2 {[%clk 0:02:44]} 18. Qxe2 {[%clk 0:02:08]}  Re8 {[%clk 0:02:44]} 19. Qf2 {[%clk 0:02:05]}  Be6 {[%clk 0:02:44]} 20. Re1 {[%clk 0:02:04]}  a6 {[%clk 0:02:40]} 21. Ne4 {[%clk 0:02:01]}  Ba7 {[%clk 0:02:37]} 22. Bc2 {[%clk 0:01:43]}  f5 {[%clk 0:02:32]} 23. Nc5 {[%clk 0:01:27]}  Bxc5 {[%clk 0:02:32]} 24. dxc5 {[%clk 0:01:28]}  Ng6 {[%clk 0:02:32]} 25. h4 {[%clk 0:01:23]}  Rd8 {[%clk 0:02:21]} 26. h5 {[%clk 0:01:19]}  Ne7 {[%clk 0:02:22]} 27. Be3 {[%clk 0:01:09]}  Nd5 {[%clk 0:02:20]} 28. Bd4 {[%clk 0:01:09]}  f6 {[%clk 0:02:12]} 29. Qe2 {[%clk 0:00:59]}  Bf7 {[%clk 0:02:10]} 30. Qd3 {[%clk 0:00:53]}  Nb4 {[%clk 0:02:05]} 31. Qxf5 {[%clk 0:00:50]}  Nxc2 {[%clk 0:02:05]} 32. Qxc2 {[%clk 0:00:51]}  Bxh5 {[%clk 0:02:05]} 33. Qf2 {[%clk 0:00:47]}  Re8 {[%clk 0:01:58]} 34. Rxe8+ {[%clk 0:00:46]}  Bxe8 {[%clk 0:01:59]} 35. Qg3 {[%clk 0:00:46]}  Kh7 {[%clk 0:01:59]} 36. Qb8 {[%clk 0:00:42]}  Bg6 {[%clk 0:01:57]} 37. Qd6 {[%clk 0:00:41]}  Qf7 {[%clk 0:01:56]} 38. b4 {[%clk 0:00:37]}  Bc2 {[%clk 0:01:55]} 39. a5 {[%clk 0:00:37]}  h5 {[%clk 0:01:54]} 40. Kf2 {[%clk 0:00:33]}  Bb3 {[%clk 0:01:53]} 41. Qh2 {[%clk 0:00:33]}  Kg8 {[%clk 0:01:46]} 42. Qb8+ {[%clk 0:00:32]}  Kh7 {[%clk 0:01:46]} 43. Qh2 {[%clk 0:00:33]}  Qg6 {[%clk 0:01:45]} 44. g4 {[%clk 0:00:30]}  Qc2+ {[%clk 0:01:45]} 45. Kg3 {[%clk 0:00:31]}  Qxh2+ {[%clk 0:01:43]} 46. Kxh2 {[%clk 0:00:32]}  h4 {[%clk 0:01:42]} 47. Kh3 {[%clk 0:00:32]}  Bd1 {[%clk 0:01:37]} 48. f4 {[%clk 0:00:29]}  g5 {[%clk 0:01:25]} 49. Bxf6 {[%clk 0:00:29]}  gxf4 {[%clk 0:01:25]} 50. Kxh4 {[%clk 0:00:29]}  Kg6 {[%clk 0:01:26]} 51. Bd4 {[%clk 0:00:29]}  Be2 {[%clk 0:01:23]} 52. Be5 {[%clk 0:00:27]}  f3 {[%clk 0:01:23]} 53. Kg3 {[%clk 0:00:27]}  f2 {[%clk 0:01:23]} 54. Kxf2 {[%clk 0:00:27]}  Bxg4 {[%clk 0:01:24]} 55. Bd4 {[%clk 0:00:27]}  Kf5 {[%clk 0:01:23]} 1/2-1/2


[Site "https://www.chess.com"]

[Event "Titled Tuesday Blitz March 08 Late 2022"]
[White "Toncheva, Nadya"]
[Black "Piesik, Piotr"]
[WhiteFideId "2924056"]
[BlackFideId "1136194"]
[WhiteElo "2392"]
[BlackElo "2589"]
[Result "0-1"]
[Round "04"]
[TimeControl "180+1"]
[Date "2022.03.09"]
[WhiteClock "0:00:01"]
[BlackClock "0:00:26"]

1. e4 {[%clk 0:02:59]}  g6 {[%clk 0:02:59]} 2. d4 {[%clk 0:02:59]}  Bg7 {[%clk 0:02:59]} 3. Nf3 {[%clk 0:02:57]}  c6 {[%clk 0:02:59]} 4. Nc3 {[%clk 0:02:55]}  d6 {[%clk 0:02:59]} 5. a4 {[%clk 0:02:55]}  Nf6 {[%clk 0:02:59]} 6. Bc4 {[%clk 0:02:55]}  O-O {[%clk 0:02:59]} 7. O-O {[%clk 0:02:55]}  Bg4 {[%clk 0:02:57]} 8. h3 {[%clk 0:02:55]}  Bxf3 {[%clk 0:02:57]} 9. Qxf3 {[%clk 0:02:56]}  Nbd7 {[%clk 0:02:58]} 10. Be3 {[%clk 0:02:56]}  Qc7 {[%clk 0:02:57]} 11. Rad1 {[%clk 0:02:56]}  e5 {[%clk 0:02:57]} 12. Rfe1 {[%clk 0:02:55]}  Rae8 {[%clk 0:02:52]} 13. Qg3 {[%clk 0:02:43]}  Nh5 {[%clk 0:02:51]} 14. Qh4 {[%clk 0:02:33]}  exd4 {[%clk 0:02:45]} 15. Bxd4 {[%clk 0:02:30]}  Ne5 {[%clk 0:02:42]} 16. Bxe5 {[%clk 0:02:15]}  Bxe5 {[%clk 0:02:37]} 17. Be2 {[%clk 0:02:13]}  Nf4 {[%clk 0:02:34]} 18. g3 {[%clk 0:02:04]}  Bxc3 {[%clk 0:02:21]} 19. bxc3 {[%clk 0:02:01]}  Ne6 {[%clk 0:02:20]} 20. f4 {[%clk 0:01:53]}  Nc5 {[%clk 0:02:18]} 21. Bf3 {[%clk 0:01:49]}  Qe7 {[%clk 0:02:01]} 22. Qxe7 {[%clk 0:01:39]}  Rxe7 {[%clk 0:02:02]} 23. Rxd6 {[%clk 0:01:40]}  Nxa4 {[%clk 0:02:02]} 24. Ra1 {[%clk 0:01:25]}  Nb6 {[%clk 0:02:01]} 25. e5 {[%clk 0:01:14]}  Nc8 {[%clk 0:01:58]} 26. Rd4 {[%clk 0:01:03]}  f6 {[%clk 0:01:42]} 27. exf6 {[%clk 0:00:59]}  Rxf6 {[%clk 0:01:43]} 28. Bg4 {[%clk 0:00:58]}  Nb6 {[%clk 0:01:41]} 29. Rxa7 {[%clk 0:00:52]}  Nd5 {[%clk 0:01:38]} 30. Bc8 {[%clk 0:00:38]}  b6 {[%clk 0:01:29]} 31. Ra6 {[%clk 0:00:19]}  Re3 {[%clk 0:01:21]} 32. Kf2 {[%clk 0:00:17]}  Rxc3 {[%clk 0:01:21]} 33. Rd2 {[%clk 0:00:13]}  Kg7 {[%clk 0:01:04]} 34. Bg4 {[%clk 0:00:13]}  b5 {[%clk 0:00:57]} 35. Bf3 {[%clk 0:00:11]}  Nb4 {[%clk 0:00:56]} 36. Ra7+ {[%clk 0:00:10]}  Rf7 {[%clk 0:00:56]} 37. Ra8 {[%clk 0:00:05]}  Nxc2 {[%clk 0:00:53]} 38. Rc8 {[%clk 0:00:05]}  Nb4 {[%clk 0:00:51]} 39. Rd6 {[%clk 0:00:04]}  c5 {[%clk 0:00:47]} 40. Rb6 {[%clk 0:00:04]}  Nd3+ {[%clk 0:00:44]} 41. Ke2 {[%clk 0:00:04]}  Re7+ {[%clk 0:00:39]} 42. Kd2 {[%clk 0:00:04]}  b4 {[%clk 0:00:39]} 43. Bd5 {[%clk 0:00:04]}  Nf2 {[%clk 0:00:29]} 44. Rd6 {[%clk 0:00:01]}  Rd3+ {[%clk 0:00:26]} 45. Kc2 {[%clk 0:00:01]}  Re2+ {[%clk 0:00:26]} 0-1


[Site "https://www.chess.com"]